Cogmind - Beta 15 @@@ ROGUE MODE // 2025.07.19 @ 15:27:46 Player: Singularius Result: Destroyed by G-47 Trooper with Particle Gun Performance ------------- Evolutions (0) 0 Regions Visited (2) 400 Robots Destroyed (28) 140 Value Destroyed (570) 570 Prototype IDs (2) 40 Alien Tech Used (0) 0 Bonus (0) 0 TOTAL SCORE: 1150 Bonus ------- None Cogmind --------- Core Integrity 0/250 Matter 241/300 Energy 100/100 System Corruption 0% Temperature Cool (9) Movement Core (400) Ox7 Location -10/Mines Parts ------- > --- POWER (1) -------- (None) > --- PROPULSION (2) --- (None) > --- UTILITY (2) ------ Large Storage Unit Terrain Scanner > --- WEAPON (2) ------- Light Assault Rifle Light Assault Rifle > --- INVENTORY (15) --- Ion Engine Light Nuclear Core Aluminum Leg Aluminum Leg Aluminum Leg Aluminum Leg Aluminum Leg Aluminum Leg Carbon-fiber Leg Improved Heat Sink Small Storage Unit Medium Storage Unit Compact Matter Pod (56) Peak State ------------ > --- POWER ------------ Ion Engine > --- PROPULSION ------- Light Treads Light Treads > --- UTILITY ---------- Small Storage Unit Improved Terrain Scanner > --- WEAPON ----------- Assault Rifle Light Assault Rifle > --- INVENTORY -------- Ion Engine Aluminum Leg Aluminum Leg EM Pulse Gun [Rating: 9] Favorites ----------- Power Ion Engine Engine Ion Engine Propulsion Light Treads Treads Light Treads Leg Aluminum Leg Utility Large Storage Unit Device Improved Terrain Scanner Storage Large Storage Unit Weapon Light Assault Rifle Energy Gun Small Laser Ballistic Gun Light Assault Rifle Launcher Grenade Launcher Build | -11 -10 -10 ------- Run | Yrd Mat Min Slots Evolved . | . . . Power . | . . . Propulsion . | . . . Utility . | . . . Weapon . | . . . Parts Attached 22 | 7 12 3 Power 2 | 1 1 . Engine 2 | 1 1 . Core . | . . . Reactor . | . . . Propulsion 7 | 2 5 . Treads 4 | 2 2 . Leg 3 | . 3 . Wheel . | . . . Hover . | . . . Flight . | . . . Utility 5 | 2 2 1 Device 2 | 1 . 1 Storage 3 | 1 2 . Processor . | . . . Hackware . | . . . Protection . | . . . Artifact . | . . . Weapon 8 | 2 4 2 Energy Gun 2 | . 2 . Energy Cannon . | . . . Ballistic Gun 5 | 2 1 2 Ballistic Cannon . | . . . Launcher 1 | . 1 . Special Weapon . | . . . Impact Weapon . | . . . Slashing Weapon . | . . . Piercing Weapon . | . . . Special Melee Weapon . | . . . Unidentified Prototypes . | . . . Parts Lost 14 | . 8 6 Power 2 | . 1 1 Propulsion 5 | . 3 2 Utility 1 | . 1 . Weapon 6 | . 3 3 Highest Loss Streak 5 | . 4 5 To Critical Strikes . | . . . Average Backups 10 | 2 7 14 Power 1 | . 1 2 Propulsion 5 | 1 4 6 Utility 2 | . 1 3 Weapon 1 | . 1 1 Tool/Special . | . . . Unused Backups 10 | . . 10 Power 2 | . . 2 Propulsion 5 | . . 5 Utility 3 | . . 3 Weapon . | . . . Tool/Special . | . . . Average Slot Usage (%) 86 | . 87 86 Engine 12 | . 12 12 Treads 22 | . 17 26 Leg 4 | . 8 . Device 5 | . 6 3 Storage 15 | . 17 14 Energy Gun 6 | . 12 1 Ballistic Gun 17 | . 9 26 Peak Build Rating 9 | 9 9 9 Average Rating 7 | 6 7 7 On Entrance 5 | . 9 7 Naked Turns . | . . . Heaviest Build 39 | 14 39 28 Greatest Support 40 | 40 40 40 Greatest Overweight (x) 4 | 4 1 . Average Overweight (x) . | . . . Largest Inventory Capacity 15 | 8 15 15 Average Capacity 12 | 7 11 15 Most Carried 15 | 4 12 15 Average Carried 10 | 2 7 14 Final Capacity 15 | 8 15 15 Final Carried 13 | 4 12 13 Class Distribution -------------------- 59% | Scavenger-Mutant 40% | Mutant Dominant Class ---------------- Mutant | -10/Materials Scavenger-Mutant | -10/Mines Resources | -11 -10 -10 ----------- Run | Yrd Mat Min Matter Collected 755 | 216 186 353 Remotely . | . . . Salvage Created 670 | 27 482 161 Parts 63 | 4 35 24 Haulers Intercepted 1 | . 1 . Recyclers Shooed 1 | . 1 . Parts Field Recycled . | . . . Retrieved Matter . | . . . Parts Self-Destructed . | . . . Prevented . | . . . Kills | -11 -10 -10 ------- Run | Yrd Mat Min Combat Hostiles Destroyed 20 | . 11 9 Guns 10 | . 8 2 AOE 10 | . 3 7 Classes Destroyed 7 | 1 5 1 Worker 2 | . 2 . Builder 2 | . . 2 Tunneler 2 | 1 . 1 Hauler 1 | . 1 . Operator 1 | . 1 . Swarmer 9 | . 3 6 Grunt 11 | . 8 3 Best Kill Streak 5 | 1 5 4 Combat Bots Only 4 | . 4 4 Max Kills in Single Turn 4 | 1 4 2 Gunslinging . | . . . Exploded 2 | . 2 2 Melee . | . . . Uniques/NPCs Destroyed . | . . . Combat | -11 -10 -10 -------- Run | Yrd Mat Min Hostile Shots Fired 173 | . 117 56 Missed 43 | . 30 13 Hits 130 | . 87 43 Projectile 130 | . 87 43 Critical Strikes 1 | . 1 . Damage Taken 1612 | . 1039 573 Core 259 | . 155 104 Absorbed by Shields . | . . . Core Remaining (%) 100 | 100 . . Volleys Fired 106 | 1 61 44 Largest 2 | 2 2 2 Hottest 60 | 40 60 60 Shots Fired 164 | 2 83 79 Gun 154 | 2 81 71 Cannon . | . . . Launcher 10 | . 2 8 Special . | . . . Kinetic 104 | 2 37 65 Thermal 43 | . 37 6 Explosive 10 | . 2 8 Electromagnetic 7 | . 7 . Robot Hit Streak 11 | 1 11 5 Robot Miss Streak 6 | . 6 3 Penetration Max . | . . . Secondary Targets 1 | . . 1 Max Gunslinging Chain 1 | . . 1 Shots Hit Robots 110 | 1 58 51 Core Hits 60 | 1 33 26 Critical Kills . | . . . Critical Parts Destroyed 1 | . . 1 Critical Strikes 1 | . . 1 Destroy 1 | . . 1 Melee Attacks . | . . . Impact . | . . . Slashing . | . . . Piercing . | . . . Sneak Attacks . | . . . Combat Hostiles . | . . . Follow-up Attacks . | . . . Damage Inflicted 1761 | 15 811 935 Guns 1036 | 15 629 392 Cannons . | . . . Explosions 725 | . 182 543 Melee . | . . . Ramming . | . . . Kinetic 668 | 15 306 347 Thermal 319 | . 274 45 Explosive 690 | . 147 543 Electromagnetic 84 | . 84 . Impact . | . . . Slashing . | . . . Piercing . | . . . Highest Corruption . | . . . Average Corruption . | . . . Corruption Purged . | . . . Corruption Blocked . | . . . Overload Shots . | . . . Overflow Damage 18 | . . 18 Projectiles . | . . . Explosions 18 | . . 18 Melee . | . . . Knockbacks . | . . . Impact . | . . . Kinetic . | . . . Secondary . | . . . Self-Inflicted Damage 79 | . 13 66 Shots 4 | . 1 3 Rammed . | . . . Targets Rammed . | . . . Kicked . | . . . Crushed . | . . . Highest Temperature 161 | . 161 103 Average Temperature 54 | . 59 35 Received Heat Transfer 813 | . 564 249 Siege Activations . | . . . Martial Activations . | . . . Shielding Activations . | . . . Robots Disrupted . | . . . Combat Hostiles . | . . . Robots Corrupted . | . . . Combat Hostiles . | . . . Parts Fried . | . . . Impact Corruptions . | . . . Robots Melted . | . . . Combat Hostiles . | . . . Parts Melted 1 | . 1 . Heat Transferred 700 | . 600 100 Parts Sabotaged . | . . . Parts Stolen . | . . . Parts Stripped . | . . . Power Chain Reactions 1 | . 1 . Alert | -11 -10 -10 ------- Run | Yrd Mat Min Maximum Alert Level . | . . . Low Security (%) 100 | 100 100 100 Level 1 . | . . . Level 2 . | . . . Level 3 . | . . . Level 4 . | . . . Level 5 . | . . . High Security . | . . . Max Security . | . . . Peak Influence 107 | 5 87 107 Initial 15 | . . 15 Average 41 | . 40 50 Influence Increases 698 | 5 347 346 Destroy 0b10 Robot/C 400 | . 220 180 Destroy 0b10 Robot/NC 40 | 5 20 15 Destroy Leader 72 | . 42 30 Successful Hack 11 | . 11 . Disable Machine 15 | . 15 . Destroy Structure 55 | . 9 46 Lose Combat Pursuer 105 | . 30 75 Influence Decreases 634 | 5 308 321 Entered New Map 24 | . . 24 Time Decay 465 | 5 228 232 Lost Part 130 | . 80 50 Lost Ally 15 | . . 15 Squads Dispatched . | . . . Investigation . | . . . Extermination . | . . . Reinforcement . | . . . Assault . | . . . Garrison . | . . . Intercept . | . . . Searches Triggered . | . . . Construction Impeded . | . . . Haulers Reinforced . | . . . Active Scanning Responses . | . . . Cargo Convoy Interrupts . | . . . Stealth | -11 -10 -10 --------- Run | Yrd Mat Min Distress Signals 5 | . 4 1 Communications Jammed . | . . . Distress Signals . | . . . Times Spotted 36 | . 21 15 Peak Tracking Total 7 | . 7 5 Tactical Retreats 5 | . 2 3 Traps | -11 -10 -10 ------- Run | Yrd Mat Min Traps Triggered . | . . . Indirectly . | . . . Trap Hack Attempts . | . . . Triggered . | . . . Disarmed . | . . . Reprogrammed . | . . . Reused . | . . . Traps Extracted . | . . . Installed . | . . . Triggered . | . . . Machines | -11 -10 -10 ---------- Run | Yrd Mat Min Machines Disabled 1 | . 1 . Max in Single Turn 1 | . 1 . Machines Repaired . | . . . Machines Dismantled . | . . . Machines Sabotaged . | . . . Overloaded Fab Kills . | . . . Hacking | -11 -10 -10 --------- Run | Yrd Mat Min Machines Accessed 2 | . 2 . Terminals 2 | . 2 . Fabricators . | . . . Repair Stations . | . . . Recycling Units . | . . . Scanalyzers . | . . . Garrison Access . | . . . Total Hacks 9 | . 9 . Successful 5 | . 5 . Failed 4 | . 4 . Catastrophic . | . . . Database Lockouts . | . . . Manual 4 | . 4 . Terminals 9 | . 9 . Fabricators . | . . . Repair Stations . | . . . Recycling Units . | . . . Scanalyzers . | . . . Garrison Access . | . . . Terminal Hacks 3 | . 3 . Prototype ID Bank 1 | . 1 . Locate Traps 1 | . 1 . Registered Components 1 | . 1 . Fabricator Hacks . | . . . Repair Station Hacks . | . . . Recycling Unit Hacks . | . . . Scanalyzer . | . . . Garrison Access Hacks . | . . . Unauthorized Hacks 2 | . 2 . Terminals 2 | . 2 . Botnet 2 | . 2 . Fabricators . | . . . Repair Stations . | . . . Recycling Units . | . . . Scanalyzers . | . . . Garrison Access . | . . . Data Cores Recovered 1 | . 1 . Used . | . . . Hacking Detections 2 | . 2 . Full Trace Events . | . . . Feedback Events . | . . . Feedback Blocked . | . . . Robot Schematics Acquired . | . . . Robots Built . | . . . Authchips . | . . . Time . | . . . Total Robot Build Rating . | . . . Part Schematics Acquired . | . . . Parts Built . | . . . Authchips . | . . . Time . | . . . Total Part Build Rating . | . . . Parts Repaired . | . . . Time . | . . . Parts Recycled . | . . . Recycled Matter . | . . . Retrieved Matter . | . . . Retrieved Components . | . . . Parts Scanalyzed . | . . . Part Schematics Acquired . | . . . Parts Damaged . | . . . Bothacking | -11 -10 -10 ------------ Run | Yrd Mat Min Used RIF Installer . | . . . Robots Hacked . | . . . Non-combat . | . . . Combat . | . . . Robot Hacks Applied . | . . . Relay Couplers Released . | . . . Fabnet Peak Effective % . | . . . Robots Rewired . | . . . Allies Hacked . | . . . Hacks Repelled . | . . . Allies | -11 -10 -10 -------- Run | Yrd Mat Min Total Allies 1 | . . 1 Largest Group 1 | . . 1 Highest-Rated Group 31 | . . 31 Highest-Rated Ally 31 | . . 31 Total Orders . | . . . Ally Attacks 3 | . . 3 Total Damage 42 | . . 42 Kills . | . . . Allies Corrupted . | . . . Allies Melted . | . . . Intel | -11 -10 -10 ------- Run | Yrd Mat Min Active Infowar (turns) 451 | 38 276 137 Terrain 451 | 38 276 137 Robot Analysis Total . | . . . Derelict Logs Recovered . | . . . Drone Launches . | . . . Drone Recoveries . | . . . Exploration | -11 -10 -10 ------------- Run | Yrd Mat Min Turns Passed 1216 | 98 572 546 Spaces Moved 564 | 51 261 252 Core 13 | 13 . . Treads 446 | 38 156 252 Legs 105 | . 105 . Wheels . | . . . Hover . | . . . Flight . | . . . Fastest Speed 50 | 50 120 160 Average Speed 156 | 159 153 160 Slowest Speed 250 | 250 190 160 Overloaded Moves . | . . . Propulsion Burnouts . | . . . Robots Hopped . | . . . Potential Cave-ins . | . . . Cave-ins Triggered . | . . . Exploration Rate (%) 43 | 4 56 69 Regions Visited 2 Branch Regions 1 Pre-discovered Areas . | . . . Known Exits Taken . | . . . Unknown Exits Taken 2 | 1 1 . Scrap Searched 1 | . . 1 Spaces Dug 3 | . . 3 Terrain Destroyed 69 | . 9 60 Melee . | . . . Projectile . | . . . AOE 69 | . 9 60 Terrain Rammed . | . . . Walls Destroyed . | . . . Machines Disabled . | . . . Actions | -11 -10 -10 --------- Run | Yrd Mat Min Total 740 | 63 350 327 Wait 24 | 1 7 16 Move 562 | 50 260 252 Hop . | . . . Pick Up 17 | 4 8 5 Fast Attach 13 | 7 5 1 Attach 6 | . 3 3 Detach 1 | . 1 . Swap 10 | . 5 5 Drop 1 | . . 1 Fire 106 | 1 61 44 Melee . | . . . Ram . | . . . Kick . | . . . Crush . | . . . Escape Stasis . | . . . Rewire . | . . . Trap . | . . . Miscellaneous . | . . . Route ------- -11/Scrapyard -10/Materials (discovered 2 exits: [*Mat] / [*Min]) -10/Mines (discovered 1 exit: [*Mat]) History --------- Turn | Location | Event 22 | -11/Scrapyard | Discovered new exit (range 16) 99 | -11/Scrapyard | Entered Materials 205 | -10/Materials | Lost 4 parts (1p1n2w) 267 | -10/Materials | Core integrity fell below 50% 425 | -10/Materials | Lost 3 parts (1n1u1w) 532 | -10/Materials | Discovered new exit (range 15) 601 | -10/Materials | Discovered new exit (range 4) 671 | -10/Materials | Entered Mines 674 | -10/Mines | Received a Mining Laser from a helpful Derelict 863 | -10/Mines | Build established: Scavenger-Mutant 915 | -10/Mines | Discovered new exit (range 13) 1204 | -10/Mines | Core integrity fell below 20% 1217 | -10/Mines | Destroyed by G-47 Trooper with Particle Gun Last Messages --------------- 01176_ Searching scrap... 01176_ Found Wheel. 01176_ Found Seismic Detector. 01176_ Found 45 Matter. 01177_ Acquired 45 matter. 01179_ S-10 Pest destroyed. 01179_ Ion Engine destroyed. 01179_ Destroyed Ion Engine. 01179_ S-10 Pest destroyed. 01183_ Lgt. Treads destroyed. 01183_ Destroyed Lgt. Treads. 01184_ Grenade Launcher destroyed. 01186_ G-34 Mercenary destroyed. 01186_ Switching to secondary target: G-47 Trooper. 01191_ The unstable cave ceiling collapses. 01191_ Lgt. Assault Rifle crushed. 01197_ Lgt. Assault Rifle destroyed. 01205_ Lgt. Treads destroyed. 01215_ The unstable cave ceiling collapses. Map ----- +----------------------------------------------------+ | | | | | | | | | | | | | ?????????????????????????????????? | | ????????????????#####????????????? | | ???????????###### ###???######## | | ???????????# ##?## | | ???????????# ### ## | | ???????????### = | | ?????????????### | | ??????????#????## # | | ????????????????# # # | | ?????????######?## ## | ######## | | ????????## ##?###### ##??????# | | ????????# ##?????####?###???# | | ????????? ##?????????# ##??# | | ????#????? ##?####### #?## | | ??????????? ### #?# | | ??????????## #?# | | ??????#### #?# | | ??????# # #### | | ?#????# g ### | | ?#????# @ *=% #? | | ??#???# # # #? | | ?????#?? = ## ## ??# | | ??????? = #### ##??????## | | ??????? #??# ##??????# | | ????? #??# ##?????# | | #??? ##??## ##????## | | ??? ##????##### ##????# | | ??# #???#?????## ##???? | | ??# """ #??????????# ###?? | | ??# """ ##??????????## ##?? | | ?? """ #????????????## ### | | ??? ??? ## ?????????## | | ??? ??? ####### #### | | ???????? ##?? | | ????????? ### | | ???????????? ########### # | | ?????????????????????????## | | ?????????????????######### | | ??????????????? ?# # | | ????????#????????# ### | | ???????? ????????# ########## #?? | | ?????????????????# #????????# #?# | | ?????????????????# #????##### #?? | | ????????????? ???# #?#### ##? | +----------------------------------------------------+ Best States ------------- Heat Dissipation 25 Energy Generation 10 Energy Capacity 250 Matter Stores 300 Matter Capacity 300 Sight Range 16 Terrain Scan Range 16 Terrain Scan Density 10 Evasion (%) 55 Recoil Reduction 2 Item Schematics ----------------- None Robot Schematics ------------------ None Fabricated ------------ Nothing Repaired ---------- Nothing Alien Tech Used ----------------- None Achievements -------------- None Challenges ------------ None Game ------ Seed ThrowingGammaPlatform Manual? 0 Play Time 00:12:22 Cumulative 86.1 hours Start 2025.07.19 @ 13:21:26 End 2025.07.19 @ 15:27:46 Sessions 2 Manual Loads 0 Difficulty Rogue Special Mode None Game No. 61 Rogue 61 Adventurer 0 Explorer 0 Win Type - Total 0 Types 0/0/0/0/0/0/0/0/0/0 Lore% 39 Gallery% 37 Achievement% 32 Wizard Run 0 Options --------- Layout 1 ASCII 0 Keyboard 0 Movement Numpad Keybinds 0 Fullscreen 1 Font 24/Smallcaps Map View 50x35 Zoom Use 0% Tactical HUD 1 Map Filters NONE Filters NONE Steam 1 RUN: 34fe2682-c8d3-4279-ad03-b889497b897e